fUSD/lending_fUSD_20250214
["ID","MTS","AMOUNT","RATE_DAILY","PERIOD"]
[353081298,1739544701594,-3262.91,0.00014438,2]
[353081299,1739544701604,-2314.45,0.00014438,2]
[353081300,1739544701613,-1772.25,0.00014438,2]
[353081301,1739544701622,-603.08,0.00014438,2]
[353081302,1739544701632,-9777.12,0.00014438,2]
[353081303,1739544701641,-500.0,0.00014438,2]
[353081304,1739544701651,-2126.44,0.00014438,2]
[353081305,1739544701660,-500.0,0.00014438,2]
[353081306,1739544701669,-5018.81,0.00014438,2]
[353081307,1739544701678,-742.14,0.00014438,2]
[353081308,1739544701688,-500.0,0.00014438,2]
[353081309,1739544701698,-1707.91,0.00014438,2]
[353081310,1739544701708,-4887.29,0.00014438,2]
[353081311,1739544701718,-1348.91,0.00014438,2]
[353081312,1739544701728,-2091.28,0.00014438,2]
[353081313,1739544701737,-3940.98,0.00014438,2]
[353081314,1739544701747,-806.99,0.00014438,2]
[353081315,1739544701756,-2219.75,0.00014438,2]
[353081316,1739544701766,-9856.61,0.00014438,2]
[353081317,1739544701777,-3791.9,0.00014438,2]
[353081318,1739544701787,-1688.79,0.00014438,2]
[353081319,1739544701797,-1160.16,0.00014438,2]
[353081320,1739544701807,-2871.72,0.00014438,2]
[353081321,1739544701817,-555.99,0.00014438,2]
[353081322,1739544701825,-3867.62,0.00014438,2]
[353081323,1739544701835,-3497.49,0.00014438,2]
[353081324,1739544701844,-4324.25,0.00014438,2]
[353081325,1739544701854,-1010.37,0.00014438,2]
[353081326,1739544701863,-503.82,0.00014438,2]
[353081327,1739544701872,-500.0,0.00014438,2]
[353081328,1739544701882,-500.0,0.00014438,2]
[353081329,1739544701893,-1311.88,0.00014438,2]
[353081330,1739544701902,-635.55,0.00014438,2]
[353081331,1739544701912,-3120.27,0.00014438,2]
[353081332,1739544701922,-3050.97,0.00014438,2]
[353081333,1739544701931,-2478.28,0.00014438,2]
[353081334,1739544701941,-3878.71,0.00014438,2]
[353081335,1739544701951,-2905.87,0.00014438,2]
[353081336,1739544701961,-3113.23,0.00014438,2]
[353081337,1739544701971,-2064.17,0.00014438,2]
[353081338,1739544701981,-9308.41,0.00014438,2]
[353081339,1739544701990,-1168.26,0.00014438,2]
[353081340,1739544702000,-974.13,0.00014438,2]
[353081341,1739544702010,-500.0,0.00014438,2]
[353081342,1739544702020,-2987.68,0.00014438,2]
[353081343,1739544702029,-599.03,0.00014438,2]
[353081344,1739544702038,-2495.74,0.00014438,2]
[353081345,1739544702048,-500.0,0.00014438,2]
[353081346,1739544702058,-3753.97,0.00014438,2]
[353081347,1739544702068,-661.86,0.00014438,2]
[353081348,1739544702079,-463.82136316,0.00014438,2]
[353081349,1739544702089,-2852.23,0.00014438,2]
[353081350,1739544702099,-2282.79,0.00014438,2]
[353081351,1739544702113,-659.95,0.00014438,2]
[353081352,1739544702123,-500.0,0.00014438,2]
[353081353,1739544702133,-2097.8,0.00014438,2]
[353081354,1739544702144,-657.14,0.00014438,2]
[353081355,1739544702155,-1146.32,0.00014438,2]
[353081356,1739544702165,-5107.22,0.00014438,2]
[353081357,1739544702175,-877.64,0.00014438,2]
[353081358,1739544702186,-4773.03,0.00014438,2]
[353081359,1739544702196,-3084.9,0.00014438,2]
[353081360,1739544702207,-829.21,0.00014438,2]
[353081361,1739544702217,-500.0,0.00014438,2]
[353081362,1739544702228,-4382.38,0.00014438,2]
[353081363,1739544702239,-500.0,0.00014438,2]
[353081364,1739544702249,-500.0,0.00014438,2]
[353081365,1739544702260,-500.0,0.00014438,2]
[353081366,1739544702270,-3816.98,0.00014438,2]
[353081367,1739544702281,-1329.9,0.00014438,2]
[353081368,1739544702294,-500.0,0.00014438,2]
[353081369,1739544702303,-779.2,0.00014438,2]
[353081370,1739544702313,-3531.24,0.00014438,2]
[353081371,1739544702323,-3267.0,0.00014438,2]
[353081372,1739544702335,-1241.61,0.00014438,2]
[353081373,1739544702346,-1017.37,0.00014438,2]
[353081374,1739544702356,-500.0,0.00014438,2]
[353081375,1739544702366,-500.0,0.00014438,2]
[353081376,1739544702375,-681.69,0.00014438,2]
[353081377,1739544702386,-500.0,0.00014438,2]
[353081378,1739544702396,-1317.51,0.00014438,2]
[353081379,1739544702406,-617.61,0.00014438,2]
[353081380,1739544702416,-542.26,0.00014438,2]
[353081381,1739544702426,-3593.84,0.00014438,2]
[353081382,1739544702435,-500.0,0.00014438,2]
[353081383,1739544702445,-3036.12,0.00014438,2]
[353081384,1739544702455,-4983.75,0.00014438,2]
[353081385,1739544702465,-542.86,0.00014438,2]
[353081386,1739544702474,-2461.67,0.00014438,2]
[353081387,1739544702484,-520.9,0.00014438,2]
[353081388,1739544702494,-3383.44,0.00014438,2]
[353081389,1739544702504,-500.0,0.00014438,2]
[353081390,1739544702514,-662.81,0.00014438,2]
[353081391,1739544702523,-1911.36,0.00014438,2]
[353081392,1739544702533,-3689.77,0.00014438,2]
[353081393,1739544702542,-2009.32,0.00014438,2]
[353081394,1739544702552,-970.34,0.00014438,2]
[353081395,1739544702563,-5827.67,0.00014438,2]
[353081396,1739544702572,-500.0,0.00014438,2]
[353081397,1739544702583,-3320.84,0.00014438,2]
[353081398,1739544702592,-4696.51,0.00014438,2]
[353081399,1739544702602,-500.0,0.00014438,2]
[353081400,1739544702612,-500.0,0.00014438,2]
[353081401,1739544702622,-2598.35,0.00014438,2]
[353081402,1739544702632,-500.0,0.00014438,2]
[353081403,1739544702642,-2259.73,0.00014438,2]
[353081404,1739544702652,-4477.39,0.00014438,2]
[353081405,1739544702662,-1589.29,0.00014438,2]
[353081406,1739544702671,-1657.4,0.00014438,2]
[353081407,1739544702681,-2233.64,0.00014438,2]
[353081408,1739544702690,-1417.16,0.00014438,2]
[353081409,1739544702700,-653.7,0.00014438,2]
[353081410,1739544702710,-896.69,0.00014438,2]
[353081411,1739544702719,-3209.23,0.00014438,2]
[353081412,1739544702729,-1823.66,0.00014438,2]
[353081413,1739544702738,-517.09,0.00014438,2]
[353081414,1739544702748,-2492.01,0.00014438,2]
[353081415,1739544702758,-1632.35,0.00014438,2]
[353081416,1739544702768,-2703.17,0.00014438,2]
[353081417,1739544702777,-298.88179772,0.00014438,2]
[353081418,1739544703255,-500.0,0.0001378,2]
[353081419,1739544703265,-201.11820228,0.00014438,2]
[353081420,1739544703277,-1185.65,0.00014438,2]
[353081421,1739544703287,-500.0,0.00014438,2]
[353081422,1739544703299,-500.0,0.00014438,2]
[353081423,1739544703468,-500.0,0.00014438,2]
[353081424,1739544703478,-2027.19367614,0.00014438,2]
[353081425,1739544703490,-420.4240141,0.00014438,2]
[353081426,1739544703501,-1359.6583,0.00014438,2]
[353081427,1739544703520,-326.58400976,0.00014438,2]
[353081428,1739544703530,-500.0,0.00014438,2]
[353081429,1739544703540,-124.36599024,0.00014438,2]
[353081430,1739544703555,-375.63400976,0.00014438,2]
[353081431,1739544703565,-183.55328535,0.00014438,2]
[353081432,1739544755785,20430.55359299,0.00015,7]
[353081435,1739544844105,200.0,0.00020873,60]
[353081436,1739544844391,200.0,0.00020873,60]
[353081447,1739545831536,-607.75,8.973e-05,2]
[353081448,1739545831548,-856.7685,8.973e-05,2]
[353081449,1739545831557,-4356.3142,8.973e-05,2]
[353081450,1739545831566,-1003.04,9.965e-05,2]
[353081451,1739545831576,-200.0,0.00010051,2]
[353081452,1739545831585,-466.68,0.00010137,2]
[353081453,1739545831594,-200.0,0.00010645,2]
[353081454,1739545831603,-200.0,0.00010962,2]
[353081455,1739545831612,-1698.59,0.00011769,2]
[353081456,1739545831621,-2000.0,0.00011814,2]
[353081457,1739545831630,-334.63,0.00011823,2]
[353081458,1739545831640,-250.0,0.00011847,2]
[353081459,1739545831649,-502.76,0.00011862,2]
[353081460,1739545831658,-1504.87891938,0.0001189,2]
[353081461,1739545831668,-200.0,0.0001196,2]
[353081462,1739545831677,-300.0,0.00011968,2]
[353081463,1739545831687,-422.98,0.00011969,2]
[353081464,1739545831696,-150.99,0.00011969,2]
[353081465,1739545831705,-1878.09,0.00011969,2]
[353081466,1739545831715,-150.0,0.00011976,2]
[353081467,1739545831724,-500.0,0.00011977,2]
[353081468,1739545831735,-480.82,0.00011977,2]
[353081469,1739545831744,-639.93,0.00011977,2]
[353081470,1739545831754,-150.99,0.00011977,2]
[353081471,1739545831763,-6610.47,0.00011977,2]
[353081472,1739545831772,-6054.78,0.00011977,2]
[353081473,1739545831782,-3491.95,0.00011977,2]
[353081474,1739545831791,-299.99,0.00011977,2]
[353081475,1739545831801,-999.99,0.00011977,2]
[353081476,1739545831810,-9999.99,0.00011977,2]
[353081477,1739545831819,-2074.55,0.00011977,2]
[353081478,1739545831828,-7339.19,0.00011977,2]
[353081479,1739545831838,-300.0,0.0001199,2]
[353081480,1739545831848,-172.12,0.00012003,2]
[353081481,1739545831857,-23900.0,0.00012064,2]
[353081482,1739545831867,-500.0,0.0001211,2]
[353081483,1739545831876,-1003.04,0.00012229,2]
[353081484,1739545831885,-250.0,0.00012427,2]
[353081485,1739545831894,-1000.0,0.00012581,2]
[353081486,1739545831904,-1500.0,0.00012681,2]
[353081487,1739545831913,-150.0,0.00012748,2]
[353081488,1739545831923,-150.0,0.00012748,2]
[353081489,1739545831933,-150.0,0.00012748,2]
[353081490,1739545831942,-150.50178747,0.00012748,2]
[353081491,1739545831952,-335.94,0.00012753,3]
[353081492,1739545831962,-306.6,0.00012753,2]
[353081493,1739545831972,-733.3535217,0.00012759,2]
[353081494,1739545831981,-890.65,0.00012807,2]
[353081495,1739545831990,-890.65,0.0001281,2]
[353081496,1739545831999,-890.65,0.00012814,2]
[353081497,1739545832008,-889.2407954,0.00012817,2]
[353081498,1739545832097,-1.4092046,0.00012817,2]
[353081499,1739545832106,-476.90667926,0.0001282,2]
[353081500,1739545832117,-413.74332074,0.0001282,2]
[353081501,1739545832126,-890.65,0.00012824,2]
[353081502,1739545832135,-890.65,0.00012827,2]
[353081503,1739545832143,-890.65,0.0001283,2]
[353081504,1739545832153,-1970.92,0.00012832,2]
[353081505,1739545832162,-890.65,0.00012834,2]
[353081506,1739545832171,-890.65,0.00012837,2]
[353081507,1739545832180,-559.40351309,0.00012841,2]
[353081508,1739545832192,-331.24648691,0.00012841,2]
[353081509,1739545832201,-890.65,0.00012844,2]
[353081510,1739545832214,-890.65,0.00012847,2]
[353081511,1739545832223,-890.65,0.00012851,2]
[353081513,1739545832232,-890.65,0.00012854,2]
[353081516,1739545832241,-890.65,0.00012857,2]
[353081517,1739545832250,-890.65,0.00012861,2]
[353081520,1739545832260,-890.65,0.00012864,2]
[353081522,1739545832270,-890.65,0.00012867,2]
[353081524,1739545832279,-890.65,0.00012871,2]
[353081525,1739545832288,-1000.0,0.00012925,2]
[353081527,1739545832298,-528.31,0.0001298,2]
[353081530,1739545832307,-550.0,0.00013,2]
[353081532,1739545832316,-153.0,0.00013066,2]
[353081533,1739545832325,-153.0,0.00013066,2]
[353081535,1739545832334,-153.0,0.00013066,2]
[353081537,1739545832343,-153.0,0.00013066,2]
[353081539,1739545832352,-1504.87891934,0.00013116,2]
[353081541,1739545832361,-300.0,0.00013139,2]
[353081543,1739545832370,-166.48,0.00013197,2]
[353081545,1739545832379,-154.0,0.00013233,2]
[353081547,1739545832388,-502.76,0.00013345,2]
[353081549,1739545832398,-733.3535217,0.000135,2]
[353081551,1739545832407,-500.0,0.000135,4]
[353081553,1739545832416,-170.86501625,0.00013598,2]
[353081555,1739545832425,-4870.28456464,0.00013598,2]
[353081557,1739545832435,-327.2631549,0.00013598,2]
[353081559,1739545832444,-334.10639552,0.00013598,2]
[353081561,1739545832453,-87225.47751961,0.00013598,2]
[353081563,1739545832463,-1000.0,0.000136,4]
[353081565,1739545832478,-500.0,0.00013697,2]
[353081567,1739545832487,-500.0,0.00013697,2]
[353081569,1739545832496,-500.0,0.00013697,2]
[353081571,1739545832505,-500.0,0.00013697,2]
[353081573,1739545832514,-500.0,0.00013697,2]
[353081575,1739545832524,-500.0,0.00013697,2]
[353081577,1739545832533,-622.04561878,0.00013697,2]
[353081579,1739545832542,-500.0,0.00013697,2]
[353081581,1739545832551,-500.0,0.00013697,2]
[353081583,1739545832560,-500.0,0.00013697,2]
[353081585,1739545832570,-500.0,0.00013697,2]
[353081587,1739545832578,-500.0,0.00013697,2]
[353081589,1739545832587,-500.0,0.00013697,2]
[353081591,1739545832597,-500.0,0.00013697,2]
[353081593,1739545832606,-157.35858192,0.00013697,2]
[353081595,1739545832615,-500.0,0.00013697,2]
[353081597,1739545832624,-500.0,0.00013697,2]
[353081599,1739545832634,-220.4561878,0.00013697,2]
[353081601,1739545832643,-500.80736758,0.00013698,2]
[353081603,1739545832652,-500.0,0.00013698,2]
[353081605,1739545832662,-500.0,0.00013698,2]
[353081607,1739545832671,-500.0,0.00013698,2]
[353081609,1739545832680,-500.0,0.00013698,2]
[353081611,1739545832690,-500.0,0.00013698,2]
[353081613,1739545832704,-500.0,0.00013698,2]
[353081615,1739545832715,-500.0,0.00013698,2]
[353081617,1739545832724,-500.0,0.00013698,2]
[353081619,1739545832733,-500.0,0.00013698,2]
[353081621,1739545832742,-500.0,0.00013698,2]
[353081623,1739545832751,-500.0,0.00013698,2]
[353081625,1739545832760,-500.0,0.00013698,2]
[353081627,1739545832771,-500.0,0.00013698,2]
[353081629,1739545832780,-500.0,0.00013698,2]
[353081631,1739545832790,-476.93819778,0.00013698,2]
[353081633,1739545832799,-500.0,0.00013698,2]
[353081635,1739545832808,-881.83,0.00013698,2]
[353081637,1739545832817,-500.0,0.00013698,2]
[353081639,1739545832826,-556.21,0.00013698,2]
[353081641,1739545832836,-1399.94,0.00013698,2]
[353081643,1739545832846,-624.26,0.00013698,2]
[353081645,1739545832856,-663.13,0.00013698,2]
[353081647,1739545832865,-500.0,0.00013698,2]
[353081649,1739545832875,-500.0,0.00013698,2]
[353081651,1739545832883,-1576.73,0.00013698,2]
[353081653,1739545832893,-500.0,0.00013698,2]
[353081655,1739545832902,-500.0,0.00013698,2]
[353081657,1739545832911,-508.66,0.00013698,2]
[353081659,1739545832920,-500.0,0.00013698,2]
[353081661,1739545832930,-500.0,0.00013698,2]
[353081663,1739545832939,-500.0,0.00013698,2]
[353081665,1739545832948,-500.0,0.00013698,2]
[353081667,1739545832957,-500.0,0.00013698,2]
[353081669,1739545832970,-500.0,0.00013698,2]
[353081671,1739545832979,-705.36,0.00013698,2]
[353081673,1739545832989,-500.0,0.00013698,2]
[353081675,1739545832999,-712.14,0.00013698,2]
[353081677,1739545833008,-922.48,0.00013698,2]
[353081679,1739545833017,-2446.53,0.00013698,2]
[353081681,1739545833027,-500.0,0.00013698,2]
[353081683,1739545833036,-500.0,0.00013698,2]
[353081685,1739545833045,-952.2,0.00013698,2]
[353081687,1739545833054,-500.0,0.00013698,2]
[353081689,1739545833064,-500.0,0.00013698,2]
[353081691,1739545833074,-570.76,0.00013698,2]
[353081693,1739545833083,-624.83,0.00013698,2]
[353081695,1739545833093,-500.0,0.00013698,2]
[353081697,1739545833102,-913.23,0.00013698,2]
[353081699,1739545833112,-610.01,0.00013698,2]
[353081701,1739545833121,-500.0,0.00013698,2]
[353081703,1739545833131,-500.0,0.00013698,2]
[353081705,1739545833140,-500.0,0.00013698,2]
[353081707,1739545833150,-634.51,0.00013698,2]
[353081709,1739545833159,-500.0,0.00013698,2]
[353081711,1739545833169,-648.6,0.00013698,2]
[353081713,1739545833178,-500.0,0.00013698,2]
[353081715,1739545833188,-500.0,0.00013698,2]
[353081717,1739545833197,-500.0,0.00013698,2]
[353081719,1739545833207,-500.0,0.00013698,2]
[353081721,1739545833218,-1506.87,0.00013698,2]
[353081723,1739545833227,-500.0,0.00013698,2]
[353081725,1739545833238,-500.0,0.00013698,2]
[353081727,1739545833250,-1081.57,0.00013698,2]
[353081729,1739545833259,-670.92,0.00013698,2]
[353081731,1739545833269,-500.0,0.00013698,2]
[353081733,1739545833278,-708.63,0.00013698,2]
[353081735,1739545833287,-500.0,0.00013698,2]
[353081737,1739545833296,-500.0,0.00013698,2]
[353081739,1739545833306,-509.91,0.00013698,2]
[353081741,1739545833316,-500.0,0.00013698,2]
[353081743,1739545833325,-1562.1,0.00013698,2]
[353081745,1739545833334,-500.0,0.00013698,2]
[353081747,1739545833345,-500.0,0.00013698,2]
[353081749,1739545833355,-1104.74,0.00013698,2]
[353081751,1739545833364,-500.0,0.00013698,2]
[353081753,1739545833374,-500.0,0.00013698,2]
[353081755,1739545833385,-530.90677712,0.00013698,2]
[353081757,1739545833395,-507.78,0.00013698,2]
[353081759,1739545833405,-744.35,0.00013698,2]
[353081761,1739545833416,-500.0,0.00013698,2]
[353081763,1739545833426,-500.0,0.00013698,2]
[353081765,1739545833435,-500.0,0.00013698,2]
[353081767,1739545833445,-515.81,0.00013698,2]
[353081769,1739545833453,-501.08,0.00013698,2]
[353081771,1739545833464,-974.01,0.00013698,2]
[353081773,1739545833478,-500.0,0.00013698,2]
[353081775,1739545833488,-500.0,0.00013698,2]
[353081777,1739545833497,-1110.24,0.00013698,2]
[353081779,1739545833507,-500.0,0.00013698,2]
[353081781,1739545833518,-918.01,0.00013698,2]
[353081783,1739545833528,-500.0,0.00013698,2]
[353081785,1739545833537,-500.0,0.00013698,2]
[353081787,1739545833547,-500.0,0.00013698,2]
[353081789,1739545833557,-500.0,0.00013698,2]
[353081791,1739545833567,-500.0,0.00013698,2]
[353081794,1739545833588,-568.81,0.00013698,2]
[353081796,1739545833599,-1168.03,0.00013698,2]
[353081798,1739545833609,-500.0,0.00013698,2]
[353081800,1739545833620,-500.0,0.00013698,2]
[353081802,1739545833629,-840.07,0.00013698,2]
[353081804,1739545833639,-500.0,0.00013698,2]
[353081806,1739545833649,-775.03,0.00013698,2]
[353081808,1739545833659,-500.0,0.00013698,2]
[353081810,1739545833669,-500.0,0.00013698,2]
[353081812,1739545833679,-504.07,0.00013698,2]
[353081814,1739545833688,-1293.04,0.00013698,2]
[353081816,1739545833697,-500.0,0.00013698,2]
[353081818,1739545833707,-500.0,0.00013698,2]
[353081821,1739545833720,-500.0,0.00013698,2]
[353081823,1739545833729,-500.0,0.00013698,2]
[353081825,1739545833739,-767.68,0.00013698,2]
[353081827,1739545833749,-798.49,0.00013698,2]
[353081829,1739545833758,-736.58,0.00013698,2]
[353081831,1739545833768,-500.0,0.00013698,2]
[353081833,1739545833777,-500.0,0.00013698,2]
[353081835,1739545833787,-500.0,0.00013698,2]
[353081837,1739545833796,-500.0,0.00013698,2]
[353081839,1739545833806,-306.97145648,0.00013698,2]
[353081841,1739545833816,-737.54,0.00013698,2]
[353081843,1739545833825,-500.0,0.00013698,2]
[353081845,1739545833835,-500.0,0.00013698,2]
[353081847,1739545833845,-500.0,0.00013698,2]
[353081849,1739545833855,-500.0,0.00013698,2]
[353081851,1739545833865,-867.18,0.00013698,2]
[353081853,1739545833875,-780.092677,0.00013698,2]
[353081855,1739545833884,-500.0,0.00013698,2]
[353081857,1739545833893,-500.0,0.00013698,2]
[353081859,1739545833903,-500.0,0.00013698,2]
[353081861,1739545833913,-865.33,0.00013698,2]
[353081863,1739545833922,-543.11,0.00013698,2]
[353081865,1739545833932,-500.0,0.00013698,2]
[353081867,1739545833942,-591.66,0.00013698,2]
[353081869,1739545833951,-500.0,0.00013698,2]
[353081871,1739545833961,-500.0,0.00013698,2]
[353081873,1739545833974,-1114.914465,0.00013698,2]
[353081875,1739545833984,-783.35,0.00013698,2]
[353081877,1739545833995,-553.80210923,0.00013698,2]
[353081879,1739545834005,-500.0,0.00013698,2]
[353081882,1739545834014,-500.0,0.00013698,2]
[353081883,1739545834024,-500.0,0.00013698,2]
[353081885,1739545834034,-535.29,0.00013698,2]
[353081888,1739545834044,-500.0,0.00013698,2]
[353081890,1739545834053,-500.0,0.00013698,2]
[353081892,1739545834063,-846.18,0.00013698,2]
[353081894,1739545834073,-500.0,0.00013698,2]
[353081896,1739545834082,-500.0,0.00013698,2]
[353081898,1739545834092,-1574.94,0.00013698,2]
[353081900,1739545834102,-545.4,0.00013698,2]
[353081902,1739545834111,-500.0,0.00013698,2]
[353081904,1739545834121,-69.7726108,0.00013698,2]
[353081956,1739545834730,-305.98,0.00013698,2]
[353081959,1739545834742,-124.2473892,0.00013698,2]
[353081961,1739545834752,-500.0,0.00013698,2]
[353081963,1739545834762,-99.7526108,0.00013698,2]
[353081965,1739545834774,-400.2473892,0.00013698,2]
[353081967,1739545834784,-500.0,0.00013698,2]
[353081969,1739545834794,-1163.11,0.00013698,2]
[353081971,1739545834804,-297.61761086,0.00013698,2]
[353081974,1739545834822,-202.38238914,0.00013698,2]
[353081976,1739545834832,-500.0,0.00013698,2]
[353081978,1739545834842,-227.10958847,0.00013698,2]
[353081983,1739545834878,-315.10364183,0.00013698,2]
[353081985,1739545834890,-215.9667697,0.00013698,2]
[353081987,1739545834900,-500.0,0.00013698,2]
[353081989,1739545834909,-903.24,0.00013698,2]
[353081991,1739545834919,-1395.2,0.00013698,2]
[353081993,1739545834928,-500.0,0.00013698,2]
[353081995,1739545834937,-500.0,0.00013698,2]
[353081997,1739545834947,-500.0,0.00013698,2]
[353081999,1739545834956,-500.0,0.00013698,2]
[353082001,1739545834968,-500.0,0.00013698,2]
[353082003,1739545834977,-500.0,0.00013698,2]
[353082005,1739545834986,-500.0,0.00013698,2]
[353082007,1739545834996,-674.27,0.00013698,2]
[353082009,1739545835005,-500.0,0.00013698,2]
[353082011,1739545835014,-500.0,0.00013698,2]
[353082013,1739545835023,-566.03,0.00013698,2]
[353082015,1739545835033,-640.74,0.00013698,2]
[353082017,1739545835043,-504.57,0.00013698,2]
[353082019,1739545835052,-500.0,0.00013698,2]
[353082021,1739545835062,-500.0,0.00013698,2]
[353082023,1739545835071,-582.08,0.00013698,2]
[353082025,1739545835082,-1542.57,0.00013698,2]
[353082027,1739545835092,-1548.23,0.00013698,2]
[353082029,1739545835102,-500.0,0.00013698,2]
[353082031,1739545835112,-500.0,0.00013698,2]
[353082033,1739545835122,-500.0,0.00013698,2]
[353082035,1739545835132,-500.0,0.00013698,2]
[353082037,1739545835142,-643.48,0.00013698,2]
[353082039,1739545835152,-506.08797835,0.00013698,2]
[353082041,1739545835162,-531.47,0.00013698,2]
[353082043,1739545835171,-500.0,0.00013698,2]
[353082045,1739545835180,-500.0,0.00013698,2]
[353082046,1739545835189,-500.0,0.00013698,2]
[353082049,1739545835199,-544.38,0.00013698,2]
[353082051,1739545835209,-881.25,0.00013698,2]
[353082053,1739545835221,-910.2,0.00013698,2]
[353082055,1739545835230,-500.0,0.00013698,2]
[353082057,1739545835240,-500.0,0.00013698,2]
[353082059,1739545835250,-500.0,0.00013698,2]
[353082061,1739545835260,-1227.48,0.00013698,2]
[353082063,1739545835269,-500.0,0.00013698,2]
[353082065,1739545835278,-500.0,0.00013698,2]
[353082067,1739545835287,-1017.57,0.00013698,2]
[353082069,1739545835297,-500.0,0.00013698,2]
[353082071,1739545835306,-611.73,0.00013698,2]
[353082073,1739545835316,-269.29825788,0.00013698,2]
[353082075,1739545835326,-500.0,0.00013698,2]
[353082077,1739545835335,-189.82673325,0.00013698,2]
[353082079,1739545835348,-401.53326675,0.00013698,2]
[353082081,1739545835358,-500.0,0.00013698,2]
[353082083,1739545835367,-500.0,0.00013698,2]
[353082085,1739545835376,-500.0,0.00013698,2]
[353082087,1739545835385,-500.0,0.00013698,2]
[353082089,1739545835395,-500.0,0.00013698,2]
[353082091,1739545835404,-834.4,0.00013698,2]
[353082093,1739545835414,-500.0,0.00013698,2]
[353082095,1739545835424,-1097.81,0.00013698,2]
[353082097,1739545835434,-500.0,0.00013698,2]
[353082099,1739545835444,-500.0,0.00013698,2]
[353082101,1739545835453,-500.0,0.00013698,2]
[353082103,1739545835463,-500.0,0.00013698,2]
[353082105,1739545835475,-500.0,0.00013698,2]
[353082107,1739545835486,-500.0,0.00013698,2]
[353082109,1739545835496,-504.344437,0.00013698,2]
[353082111,1739545835505,-525.5,0.00013698,2]
[353082113,1739545835515,-500.0,0.00013698,2]
[353082115,1739545835524,-606.72,0.00013698,2]
[353082117,1739545835533,-1076.19,0.00013698,2]
[353082119,1739545835543,-500.0,0.00013698,2]
[353082121,1739545835552,-500.0,0.00013698,2]
[353082123,1739545835562,-893.46,0.00013698,2]
[353082125,1739545835571,-500.0,0.00013698,2]
[353082127,1739545835581,-500.0,0.00013698,2]
[353082129,1739545835590,-500.0,0.00013698,2]
[353082131,1739545835600,-500.0,0.00013698,2]
[353082133,1739545835610,-923.71,0.00013698,2]
[353082135,1739545835619,-692.78,0.00013698,2]
[353082137,1739545835628,-500.0,0.00013698,2]
[353082139,1739545835638,-500.0,0.00013698,2]
[353082141,1739545835647,-500.0,0.00013698,2]
[353082143,1739545835656,-500.0,0.00013698,2]
[353082145,1739545835667,-523.53469485,0.00013698,2]
[353082273,1739545837566,-189.90162194,0.00012741,2]
[353082274,1739545837576,-313.28530515,0.00013698,2]
[353082275,1739545837586,-948.97,0.00013698,2]
[353082276,1739545837595,-500.0,0.00013698,2]
[353082277,1739545837605,-500.0,0.00013698,2]
[353082278,1739545837614,-500.0,0.00013698,2]
[353082279,1739545837624,-1211.66,0.00013698,2]
[353082280,1739545837633,-536.97,0.00013698,2]
[353082281,1739545837641,-500.0,0.00013698,2]
[353082282,1739545837651,-500.0,0.00013698,2]